Workbook

Sheet Aufgabe 1 und 3
A1: Myear | B1: 250 | D1: Output:
A2: sigma1 | B2: 0.7 | D2: realized_vol1 | E2: 0.7176194118
A3: sigma2 | B3: 0.1 | D3: realized_vol2 | E3: 0.09625872788
A4: mu1 | B4: 0.15 | D4: realized_totalvol | E4: 0.5119782041
A5: mu2 | B5: 0.01
A6: S0 | B6: 100
A9: t_k | B9: S(t_k), mit diskreter SDE | C9: S(t_k), mit Lemma 13.3
A11: 0.004 | B11: 102.0887051 | C11: 102.0106517
A12: 0.008 | B12: 102.5934353 | C12: 102.4158281
A13: 0.012 | B13: 102.5346039 | C13: 102.2568546
A14: 0.016 | B14: 92.32985825 | C14: 92.4791243
A15: 0.02 | B15: 91.69884014 | C15: 91.75927278
A16: 0.024 | B16: 95.47396919 | C16: 95.52207035
A17: 0.028 | B17: 92.62858942 | C17: 92.62644165
A18: 0.032 | B18: 90.39797523 | C18: 90.33395162
A19: 0.036 | B19: 91.4883121 | C19: 91.34055604
A20: 0.04 | B20: 98.38795343 | C20: 98.39898067
A21: 0.044 | B21: 98.76591269 | C21: 98.68095452
A22: 0.048 | B22: 97.0504159 | C22: 96.88673773
A23: 0.052 | B23: 95.91873517 | C23: 95.6697248
A24: 0.056 | B24: 94.50344627 | C24: 94.17613543
A25: 0.06 | B25: 93.46274395 | C25: 93.05348996
A26: 0.064 | B26: 89.08150257 | C26: 88.70512029
A27: 0.068 | B27: 89.95902922 | C27: 89.49550877
A28: 0.072 | B28: 90.17425966 | C28: 89.62201394
A29: 0.076 | B29: 81.41005285 | C29: 81.24173478
A30: 0.08 | B30: 85.70230782 | C30: 85.55615841
A31: 0.084 | B31: 84.61909373 | C31: 84.39884527
A32: 0.088 | B32: 77.5005295 | C32: 77.51325245
A33: 0.092 | B33: 76.57877251 | C33: 76.52177676
A34: 0.096 | B34: 80.27858629 | C34: 80.2309374
A35: 0.1 | B35: 73.8705265 | C35: 74.0030579
A36: 0.104 | B36: 77.26652743 | C36: 77.4086673
A37: 0.108 | B37: 77.32027027 | C37: 77.38665164
A38: 0.112 | B38: 75.18662516 | C38: 75.2066311
A39: 0.116 | B39: 77.36462936 | C39: 77.34124475
A40: 0.12 | B40: 74.29644912 | C40: 74.26120575
A41: 0.124 | B41: 78.05313055 | C41: 78.03614293
A42: 0.128 | B42: 77.29800821 | C42: 77.20912307
A43: 0.132 | B43: 70.69631458 | C43: 70.81932277
A44: 0.136 | B44: 75.4898998 | C44: 75.71355372
A45: 0.14 | B45: 77.47819331 | C45: 77.65808976
A46: 0.144 | B46: 77.61545654 | C46: 77.71959112
A47: 0.148 | B47: 85.96897349 | C47: 86.46626522
A48: 0.152 | B48: 88.08084152 | C48: 88.52985219
A49: 0.156 | B49: 87.52919387 | C49: 87.89094971
A50: 0.16 | B50: 83.21503756 | C50: 83.58203791
A51: 0.164 | B51: 78.49641784 | C51: 78.89711869
A52: 0.168 | B52: 83.39125433 | C52: 83.89132064
A53: 0.172 | B53: 84.93190502 | C53: 85.37191021
A54: 0.176 | B54: 88.90211005 | C54: 89.36980467
A55: 0.18 | B55: 84.65013864 | C55: 85.11261868
A56: 0.184 | B56: 85.87502013 | C56: 86.26856112
A57: 0.188 | B57: 84.94592813 | C57: 85.25664973
A58: 0.192 | B58: 93.52769194 | C58: 94.2275225
A59: 0.196 | B59: 93.59771288 | C59: 94.20572692
A60: 0.2 | B60: 91.70918257 | C60: 92.23354345
A61: 0.204 | B61: 89.10196904 | C61: 89.56053206
A62: 0.208 | B62: 94.22725205 | C62: 94.77031985
A63: 0.212 | B63: 90.03577408 | C63: 90.55828055
A64: 0.216 | B64: 91.21204443 | C64: 91.6592691
A65: 0.22 | B65: 94.07254295 | C65: 94.48669951
A66: 0.224 | B66: 89.25075756 | C66: 89.67778193
A67: 0.228 | B67: 88.61478227 | C67: 88.95381766
A68: 0.232 | B68: 87.88417293 | C68: 88.13701152
A69: 0.236 | B69: 92.90936949 | C69: 93.23212211
A70: 0.24 | B70: 91.45005801 | C70: 91.68928208
A71: 0.244 | B71: 89.55814558 | C71: 89.72393451
A72: 0.248 | B72: 90.88496093 | C72: 90.97390339
A73: 0.252 | B73: 93.2661056 | C73: 93.29739949
A74: 0.256 | B74: 95.0935412 | C74: 95.05028006
A75: 0.26 | B75: 86.92870977 | C75: 87.14426503
A76: 0.264 | B76: 91.13158558 | C76: 91.37148957
A77: 0.268 | B77: 95.54310871 | C77: 95.80949353
A78: 0.272 | B78: 99.64057733 | C78: 99.90980703
A79: 0.276 | B79: 97.02508437 | C79: 97.22603971
A80: 0.28 | B80: 89.8106987 | C80: 90.17053334
A81: 0.284 | B81: 82.97527146 | C81: 83.48052879
A82: 0.288 | B82: 86.49427977 | C82: 87.01180008
A83: 0.292 | B83: 88.62549775 | C83: 89.09504579
A84: 0.296 | B84: 89.62281806 | C84: 90.0150545
A85: 0.3 | B85: 88.18834121 | C85: 88.49899698
A86: 0.304 | B86: 84.84908401 | C86: 85.12716133
A87: 0.308 | B87: 90.45888031 | C87: 90.85648227
A88: 0.312 | B88: 90.96986333 | C88: 91.28166369
A89: 0.316 | B89: 93.59013512 | C89: 93.85712376
A90: 0.32 | B90: 94.68136028 | C90: 94.86485343
A91: 0.324 | B91: 91.33610877 | C91: 91.48194254
A92: 0.328 | B92: 92.04404446 | C92: 92.10345799
A93: 0.332 | B93: 95.31081332 | C93: 95.33755978
A94: 0.336 | B94: 99.73409179 | C94: 99.76853403
A95: 0.34 | B95: 98.26197221 | C95: 98.21042772
A96: 0.344 | B96: 92.30650462 | C96: 92.34433273
A97: 0.348 | B97: 86.48728152 | C97: 86.61750598
A98: 0.352 | B98: 91.21150486 | C98: 91.39084168
A99: 0.356 | B99: 94.73164607 | C99: 94.89380688
A100: 0.36 | B100: 89.40430162 | C100: 89.61675313
A101: 0.364 | B101: 95.17533663 | C101: 95.49865254
A102: 0.368 | B102: 97.51121746 | C102: 97.77560022
A103: 0.372 | B103: 105.2892517 | C103: 105.7904862
A104: 0.376 | B104: 99.25607468 | C104: 99.80114091
A105: 0.38 | B105: 94.56340243 | C105: 95.09925888
A106: 0.384 | B106: 93.4929381 | C106: 93.9366958
A107: 0.388 | B107: 103.5962424 | C107: 104.554242
A108: 0.392 | B108: 107.2342834 | C108: 108.1850837
A109: 0.396 | B109: 100.0302971 | C109: 101.0568893
A110: 0.4 | B110: 97.98432967 | C110: 98.91393622
A111: 0.404 | B111: 97.00290294 | C111: 97.832221
A112: 0.408 | B112: 97.97642917 | C112: 98.72221858
A113: 0.412 | B113: 100.552203 | C113: 101.2527395
A114: 0.416 | B114: 103.5340652 | C114: 104.1981765
A115: 0.42 | B115: 97.96290363 | C115: 98.64274555
A116: 0.424 | B116: 90.33186706 | C116: 91.1610284
A117: 0.428 | B117: 89.33309129 | C117: 90.07032443
A118: 0.432 | B118: 88.8354685 | C118: 89.48225419
A119: 0.436 | B119: 94.56851767 | C119: 95.35396512
A120: 0.44 | B120: 99.04399813 | C120: 99.87717532
A121: 0.444 | B121: 100.9567816 | C121: 101.7250562
A122: 0.448 | B122: 95.9750408 | C122: 96.7323963
A123: 0.452 | B123: 95.03002911 | C123: 95.69077829
A124: 0.456 | B124: 99.01222478 | C124: 99.68812241
A125: 0.46 | B125: 103.992317 | C125: 104.7277669
A126: 0.464 | B126: 106.0083351 | C126: 106.6732591
A127: 0.468 | B127: 104.7344944 | C127: 105.2958586
A128: 0.472 | B128: 105.233114 | C128: 105.6947144
A129: 0.476 | B129: 97.47277946 | C129: 98.08462821
A130: 0.48 | B130: 102.936003 | C130: 103.6375141
A131: 0.484 | B131: 99.72338057 | C131: 100.3545553
A132: 0.488 | B132: 98.78019274 | C132: 99.31249832
A133: 0.492 | B133: 109.7793276 | C133: 110.9013455
A134: 0.496 | B134: 105.4253353 | C134: 106.4845297
A135: 0.5 | B135: 112.2460426 | C135: 113.49023
A136: 0.504 | B136: 103.3876454 | C136: 104.77522
A137: 0.508 | B137: 99.55662797 | C137: 100.8649413
A138: 0.512 | B138: 98.17555426 | C138: 99.37794072
A139: 0.516 | B139: 94.75015466 | C139: 95.87637579
A140: 0.52 | B140: 97.41378971 | C140: 98.51332387
A141: 0.524 | B141: 100.7014233 | C141: 101.7949979
A142: 0.528 | B142: 104.0358917 | C142: 105.1190369
A143: 0.532 | B143: 106.4818443 | C143: 107.5143206
A144: 0.536 | B144: 98.3430293 | C144: 99.50523199
A145: 0.54 | B145: 93.10714298 | C145: 94.25361431
A146: 0.544 | B146: 89.07721545 | C146: 90.17267873
A147: 0.548 | B147: 94.61081617 | C147: 95.85799501
A148: 0.552 | B148: 87.77252581 | C148: 89.08667518
A149: 0.556 | B149: 82.925561 | C149: 84.21793335
A150: 0.56 | B150: 87.49359042 | C150: 88.90014618
A151: 0.564 | B151: 90.64143523 | C151: 92.0665598
A152: 0.568 | B152: 91.24725612 | C152: 92.593181
A153: 0.572 | B153: 87.66188363 | C153: 88.93827277
A154: 0.576 | B154: 92.11748814 | C154: 93.48394627
A155: 0.58 | B155: 91.07293432 | C155: 92.33934826
A156: 0.584 | B156: 86.47087268 | C156: 87.70323211
A157: 0.588 | B157: 84.0253141 | C157: 85.17405562
A158: 0.592 | B158: 85.76674994 | C158: 86.87254194
A159: 0.596 | B159: 82.65765578 | C159: 83.69769451
A160: 0.6 | B160: 81.65019234 | C160: 82.60275605
A161: 0.604 | B161: 77.97459393 | C161: 78.88938155
A162: 0.608 | B162: 77.76343818 | C162: 78.5989728
A163: 0.612 | B163: 78.13860851 | C163: 78.90172878
A164: 0.616 | B164: 74.62253069 | C164: 75.35612286
A165: 0.62 | B165: 72.84797357 | C165: 73.51318176
A166: 0.624 | B166: 70.57278695 | C166: 71.1829093
A167: 0.628 | B167: 72.17128648 | C167: 72.74230437
A168: 0.632 | B168: 68.55981199 | C168: 69.12405547
A169: 0.636 | B169: 69.42355017 | C169: 69.93184407
A170: 0.64 | B170: 76.39930047 | C170: 77.24808675
A171: 0.644 | B171: 70.89789971 | C171: 71.81070975
A172: 0.648 | B172: 69.69694191 | C172: 70.53537578
A173: 0.652 | B173: 69.489266 | C173: 70.25662916
A174: 0.656 | B174: 65.17762783 | C174: 65.96518658
A175: 0.66 | B175: 64.2512852 | C175: 64.97057928
A176: 0.664 | B176: 68.40715221 | C176: 69.24396561
A177: 0.668 | B177: 71.10742043 | C177: 71.96137237
A178: 0.672 | B178: 77.45226315 | C178: 78.60053153
A179: 0.676 | B179: 75.43749689 | C179: 76.50724597
A180: 0.68 | B180: 77.55808329 | C180: 78.61133997
A181: 0.684 | B181: 76.34154548 | C181: 77.31209851
A182: 0.688 | B182: 73.82352301 | C182: 74.73038812
A183: 0.692 | B183: 72.37970029 | C183: 73.21124665
A184: 0.696 | B184: 67.16807198 | C184: 68.05832424
A185: 0.7 | B185: 63.24084331 | C185: 64.13026237
A186: 0.704 | B186: 66.18442731 | C186: 67.11999451
A187: 0.708 | B187: 69.40981254 | C187: 70.40295772
A188: 0.712 | B188: 69.13728049 | C188: 70.05837729
A189: 0.716 | B189: 70.59690119 | C189: 71.48307979
A190: 0.72 | B190: 74.15680093 | C190: 75.10645429
A191: 0.724 | B191: 77.52001556 | C191: 78.51417994
A192: 0.728 | B192: 79.17584714 | C192: 80.13071966
A193: 0.732 | B193: 77.50279592 | C193: 78.37840701
A194: 0.736 | B194: 78.36841231 | C194: 79.18107431
A195: 0.74 | B195: 72.51718849 | C195: 73.41250365
A196: 0.744 | B196: 67.12828098 | C196: 68.08807788
A197: 0.748 | B197: 68.02342442 | C197: 68.93451172
A198: 0.752 | B198: 65.39004304 | C198: 66.25189626
A199: 0.756 | B199: 68.1474945 | C199: 69.03774429
A200: 0.76 | B200: 67.12968094 | C200: 67.94767494
A201: 0.764 | B201: 70.98354762 | C201: 71.89215891
A202: 0.768 | B202: 69.39100835 | C202: 70.22833584
A203: 0.772 | B203: 66.09070975 | C203: 66.90080347
... 307 more rows

Sheet DAX-Vols, mit Excel, 2007-2016
A1: Date | B1: Year | C1: Adj Close | D1: ret^2 | E1: yearly vols | F1: Year | G1: yearly vols
A2: 2007-01-02 | B2: =YEAR(A2) -> 2007 | C2: 6681.129883 | D2: 0 | E2: =SQRT(SUM(D2:D253)) -> 0.1548196613 | F2: 2007 | G2: 0.1548196613
A3: 2007-01-03 | B3: =YEAR(A3) -> 2007 | C3: 6691.319824 | D3: =( (C3-C2)/C2 )^2 -> 2.326181029e-06 | F3: 2008 | G3: 0.3804080718
A4: 2007-01-04 | B4: 2007 | C4: 6674.399902 | D4: =( (C4-C3)/C3 )^2 -> 6.394007431e-06 | F4: 2009 | G4: 0.2854787969
A5: 2007-01-05 | B5: 2007 | C5: 6593.089844 | D5: 0.0001484103172 | F5: 2010 | G5: 0.1842369893
A6: 2007-01-08 | B6: 2007 | C6: 6607.589844 | D6: 4.836798739e-06 | F6: 2011 | G6: 0.2904887905
A7: 2007-01-09 | B7: 2007 | C7: 6614.370117 | D7: 1.052951111e-06 | F7: 2012 | G7: 0.1919754691
A8: 2007-01-10 | B8: 2007 | C8: 6566.560059 | D8: 5.224702369e-05 | F8: 2013 | G8: 0.1467265593
A9: 2007-01-11 | B9: 2007 | C9: 6687.299805 | D9: 0.0003380840438 | F9: 2014 | G9: 0.1671568177
A10: 2007-01-12 | B10: 2007 | C10: 6705.169922 | D10: 7.140904155e-06 | F10: 2015 | G10: 0.2354593597
A11: 2007-01-15 | B11: 2007 | C11: 6731.740234 | D11: 1.570267824e-05 | F11: 2016 | G11: 0.2092431857
A12: 2007-01-16 | B12: 2007 | C12: 6716.819824 | D12: 4.912548112e-06
A13: 2007-01-17 | B13: 2007 | C13: 6701.700195 | D13: 5.067046294e-06 | F13: Gesamt-Vol: | G13: =SQRT(1/10*SUM(D2:D2536)) -> 0.2353833181
A14: 2007-01-18 | B14: 2007 | C14: 6689.620117 | D14: 3.24914794e-06
A15: 2007-01-19 | B15: 2007 | C15: 6747.169922 | D15: 7.400904504e-05
A16: 2007-01-22 | B16: 2007 | C16: 6687.310059 | D16: 7.87096791e-05
A17: 2007-01-23 | B17: 2007 | C17: 6678.930176 | D17: 1.570265144e-06
A18: 2007-01-24 | B18: 2007 | C18: 6748.370117 | D18: 0.0001080948193
A19: 2007-01-25 | B19: 2007 | C19: 6719.580078 | D19: 1.820064249e-05
A20: 2007-01-26 | B20: 2007 | C20: 6690.339844 | D20: 1.893552802e-05
A21: 2007-01-29 | B21: 2007 | C21: 6726.009766 | D21: 2.842549012e-05
A22: 2007-01-30 | B22: 2007 | C22: 6788.22998 | D22: 8.557521794e-05
A23: 2007-01-31 | B23: 2007 | C23: 6789.109863 | D23: 1.680106294e-08
A24: 2007-02-01 | B24: 2007 | C24: 6851.279785 | D24: 8.385616015e-05
A25: 2007-02-02 | B25: 2007 | C25: 6885.759766 | D25: 2.532740117e-05
A26: 2007-02-05 | B26: 2007 | C26: 6874.060059 | D26: 2.886996371e-06
A27: 2007-02-06 | B27: 2007 | C27: 6875.700195 | D27: 5.692893744e-08
A28: 2007-02-07 | B28: 2007 | C28: 6915.560059 | D28: 3.36076203e-05
A29: 2007-02-08 | B29: 2007 | C29: 6876.72998 | D29: 3.152694096e-05
A30: 2007-02-09 | B30: 2007 | C30: 6911.109863 | D30: 2.499452255e-05
A31: 2007-02-12 | B31: 2007 | C31: 6859.450195 | D31: 5.587372525e-05
A32: 2007-02-13 | B32: 2007 | C32: 6895.339844 | D32: 2.737535802e-05
A33: 2007-02-14 | B33: 2007 | C33: 6961.180176 | D33: 9.117434938e-05
A34: 2007-02-15 | B34: 2007 | C34: 6958.620117 | D34: 1.352490425e-07
A35: 2007-02-16 | B35: 2007 | C35: 6957.069824 | D35: 4.963423306e-08
A36: 2007-02-19 | B36: 2007 | C36: 6987.080078 | D36: 1.860743961e-05
A37: 2007-02-20 | B37: 2007 | C37: 6982.910156 | D37: 3.561758107e-07
A38: 2007-02-21 | B38: 2007 | C38: 6941.660156 | D38: 3.489594768e-05
A39: 2007-02-22 | B39: 2007 | C39: 6973.72998 | D39: 2.134354023e-05
A40: 2007-02-23 | B40: 2007 | C40: 6992.580078 | D40: 7.306291066e-06
A41: 2007-02-26 | B41: 2007 | C41: 7027.589844 | D41: 2.506706683e-05
A42: 2007-02-27 | B42: 2007 | C42: 6819.649902 | D42: 0.0008755138565
A43: 2007-02-28 | B43: 2007 | C43: 6715.439941 | D43: 0.0002335039904
A44: 2007-03-01 | B44: 2007 | C44: 6640.240234 | D44: 0.0001253959062
A45: 2007-03-02 | B45: 2007 | C45: 6603.319824 | D45: 3.091472922e-05
A46: 2007-03-05 | B46: 2007 | C46: 6534.569824 | D46: 0.000108397868
A47: 2007-03-06 | B47: 2007 | C47: 6595 | D47: 8.552118549e-05
A48: 2007-03-07 | B48: 2007 | C48: 6617.75 | D48: 1.189962299e-05
A49: 2007-03-08 | B49: 2007 | C49: 6713.22998 | D49: 0.0002081631855
A50: 2007-03-09 | B50: 2007 | C50: 6716.52002 | D50: 2.401813632e-07
A51: 2007-03-12 | B51: 2007 | C51: 6715.490234 | D51: 2.350744017e-08
A52: 2007-03-13 | B52: 2007 | C52: 6623.990234 | D52: 0.0001856464908
A53: 2007-03-14 | B53: 2007 | C53: 6447.700195 | D53: 0.0007082982695
A54: 2007-03-15 | B54: 2007 | C54: 6585.470215 | D54: 0.0004565620105
A55: 2007-03-16 | B55: 2007 | C55: 6579.870117 | D55: 7.231321568e-07
A56: 2007-03-19 | B56: 2007 | C56: 6671.410156 | D56: 0.0001935474903
A57: 2007-03-20 | B57: 2007 | C57: 6700.290039 | D57: 1.873939542e-05
A58: 2007-03-21 | B58: 2007 | C58: 6712.060059 | D58: 3.085795891e-06
A59: 2007-03-22 | B59: 2007 | C59: 6856.959961 | D59: 0.0004660414188
A60: 2007-03-23 | B60: 2007 | C60: 6899.060059 | D60: 3.769666989e-05
A61: 2007-03-26 | B61: 2007 | C61: 6828.819824 | D61: 0.0001036554307
A62: 2007-03-27 | B62: 2007 | C62: 6858.339844 | D62: 1.868710331e-05
A63: 2007-03-28 | B63: 2007 | C63: 6816.890137 | D63: 3.652623652e-05
A64: 2007-03-29 | B64: 2007 | C64: 6897.080078 | D64: 0.0001383780474
A65: 2007-03-30 | B65: 2007 | C65: 6917.029785 | D65: 8.366474785e-06
A66: 2007-04-02 | B66: 2007 | C66: 6937.169922 | D66: 8.477846508e-06
A67: 2007-04-03 | B67: =YEAR(A67) -> 2007 | C67: 7045.560059 | D67: 0.0002441264667
A68: 2007-04-04 | B68: 2007 | C68: 7073.910156 | D68: =( (C68-C67)/C67 )^2 -> 1.61911634e-05
A69: 2007-04-05 | B69: 2007 | C69: 7099.910156 | D69: 1.350913733e-05
A70: 2007-04-10 | B70: 2007 | C70: 7166.669922 | D70: 8.841458349e-05
A71: 2007-04-11 | B71: 2007 | C71: 7152.830078 | D71: 3.729302264e-06
A72: 2007-04-12 | B72: 2007 | C72: 7142.950195 | D72: 1.907865642e-06
A73: 2007-04-13 | B73: 2007 | C73: 7212.069824 | D73: 9.363701333e-05
A74: 2007-04-16 | B74: 2007 | C74: 7338.060059 | D74: 0.0003051784947
A75: 2007-04-17 | B75: 2007 | C75: 7348.830078 | D75: 2.154122589e-06
A76: 2007-04-18 | B76: 2007 | C76: 7282.339844 | D76: 8.186142711e-05
A77: 2007-04-19 | B77: 2007 | C77: 7242.72998 | D77: 2.95845398e-05
A78: 2007-04-20 | B78: 2007 | C78: 7342.540039 | D78: 0.0001899083393
A79: 2007-04-23 | B79: 2007 | C79: 7335.620117 | D79: 8.881979195e-07
A80: 2007-04-24 | B80: 2007 | C80: 7270.319824 | D80: 7.924221275e-05
A81: 2007-04-25 | B81: 2007 | C81: 7343.080078 | D81: 0.0001001570169
A82: 2007-04-26 | B82: 2007 | C82: 7387.02002 | D82: 3.580654602e-05
A83: 2007-04-27 | B83: 2007 | C83: 7378.120117 | D83: 1.451549981e-06
A84: 2007-04-30 | B84: 2007 | C84: 7408.870117 | D84: 1.736995917e-05
A85: 2007-05-02 | B85: 2007 | C85: 7455.930176 | D85: 4.034604531e-05
A86: 2007-05-03 | B86: 2007 | C86: 7476.689941 | D86: 7.752489765e-06
A87: 2007-05-04 | B87: 2007 | C87: 7516.759766 | D87: 2.872209735e-05
A88: 2007-05-07 | B88: 2007 | C88: 7525.689941 | D88: 1.411427576e-06
A89: 2007-05-08 | B89: 2007 | C89: 7442.200195 | D89: 0.0001230760747
A90: 2007-05-09 | B90: 2007 | C90: 7475.990234 | D90: 2.061458942e-05
A91: 2007-05-10 | B91: 2007 | C91: 7415.330078 | D91: 6.583693357e-05
A92: 2007-05-11 | B92: 2007 | C92: 7479.339844 | D92: 7.45129065e-05
A93: 2007-05-14 | B93: 2007 | C93: 7459.609863 | D93: 6.958678949e-06
A94: 2007-05-15 | B94: 2007 | C94: 7505.350098 | D94: 3.75979836e-05
A95: 2007-05-16 | B95: 2007 | C95: 7481.25 | D95: 1.031087938e-05
A96: 2007-05-17 | B96: 2007 | C96: 7499.5 | D96: 5.950828059e-06
A97: 2007-05-18 | B97: 2007 | C97: 7607.540039 | D97: 0.0002075414495
A98: 2007-05-21 | B98: 2007 | C98: 7619.310059 | D98: 2.393678991e-06
A99: 2007-05-22 | B99: 2007 | C99: 7659.390137 | D99: 2.767106165e-05
A100: 2007-05-23 | B100: 2007 | C100: 7735.879883 | D100: 9.972821713e-05
A101: 2007-05-24 | B101: 2007 | C101: 7697.379883 | D101: 2.476863217e-05
A102: 2007-05-25 | B102: 2007 | C102: 7739.200195 | D102: 2.951812015e-05
A103: 2007-05-29 | B103: 2007 | C103: 7781.040039 | D103: 2.922724979e-05
A104: 2007-05-30 | B104: 2007 | C104: 7764.970215 | D104: 4.26527405e-06
A105: 2007-05-31 | B105: 2007 | C105: 7883.040039 | D105: 0.0002312055438
A106: 2007-06-01 | B106: 2007 | C106: 7987.850098 | D106: 0.0001767740313
A107: 2007-06-04 | B107: 2007 | C107: 7976.790039 | D107: 1.917145502e-06
A108: 2007-06-05 | B108: 2007 | C108: 7919.830078 | D108: 5.098976903e-05
A109: 2007-06-06 | B109: 2007 | C109: 7730.049805 | D109: 0.0005742095438
A110: 2007-06-07 | B110: 2007 | C110: 7618.609863 | D110: 0.0002078342749
A111: 2007-06-08 | B111: 2007 | C111: 7590.5 | D111: 1.361338067e-05
A112: 2007-06-11 | B112: 2007 | C112: 7706.100098 | D112: 0.0002319399906
A113: 2007-06-12 | B113: 2007 | C113: 7678.259766 | D113: 1.305207402e-05
A114: 2007-06-13 | B114: 2007 | C114: 7680.759766 | D114: 1.060118506e-07
A115: 2007-06-14 | B115: 2007 | C115: 7849.160156 | D115: 0.0004807040957
A116: 2007-06-15 | B116: 2007 | C116: 8030.640137 | D116: 0.0005345779842
A117: 2007-06-18 | B117: 2007 | C117: 8036.120117 | D117: 4.656478658e-07
A118: 2007-06-19 | B118: 2007 | C118: 8033.52002 | D118: 1.046854348e-07
A119: 2007-06-20 | B119: 2007 | C119: 8090.490234 | D119: 5.029026696e-05
A120: 2007-06-21 | B120: 2007 | C120: 7964.709961 | D120: 0.0002416992986
A121: 2007-06-22 | B121: 2007 | C121: 7949.629883 | D121: 3.584819101e-06
A122: 2007-06-25 | B122: 2007 | C122: 7930.609863 | D122: 5.724375573e-06
A123: 2007-06-26 | B123: 2007 | C123: 7860.52002 | D123: 7.810826711e-05
A124: 2007-06-27 | B124: 2007 | C124: 7801.22998 | D124: 5.68932745e-05
A125: 2007-06-28 | B125: 2007 | C125: 7921.359863 | D125: 0.0002371242368
A126: 2007-06-29 | B126: 2007 | C126: 8007.319824 | D126: 0.000117758681
A127: 2007-07-02 | B127: 2007 | C127: 7958.240234 | D127: 3.756881543e-05
A128: 2007-07-03 | B128: 2007 | C128: 8050.680176 | D128: 0.0001349227669
A129: 2007-07-04 | B129: 2007 | C129: 8075.259766 | D129: 9.32146387e-06
A130: 2007-07-05 | B130: 2007 | C130: 7987.129883 | D130: 0.0001191059298
A131: 2007-07-06 | B131: =YEAR(A131) -> 2007 | C131: 8048.319824 | D131: 5.869195492e-05
A132: 2007-07-09 | B132: 2007 | C132: 8077.390137 | D132: =( (C132-C131)/C131 )^2 -> 1.304634815e-05
A133: 2007-07-10 | B133: 2007 | C133: 7964.759766 | D133: 0.0001944325221
A134: 2007-07-11 | B134: 2007 | C134: 7898.540039 | D134: 6.912408726e-05
A135: 2007-07-12 | B135: 2007 | C135: 8053.430176 | D135: 0.0003845509422
A136: 2007-07-13 | B136: 2007 | C136: 8092.77002 | D136: 2.386181485e-05
A137: 2007-07-16 | B137: 2007 | C137: 8105.689941 | D137: 2.548738731e-06
A138: 2007-07-17 | B138: 2007 | C138: 8038.209961 | D138: 6.93058535e-05
A139: 2007-07-18 | B139: 2007 | C139: 7893.609863 | D139: 0.0003236074287
A140: 2007-07-19 | B140: 2007 | C140: 7991.209961 | D140: 0.0001528794782
A141: 2007-07-20 | B141: 2007 | C141: 7874.850098 | D141: 0.0002120221917
A142: 2007-07-23 | B142: 2007 | C142: 7944.209961 | D142: 7.757680019e-05
A143: 2007-07-24 | B143: 2007 | C143: 7806.790039 | D143: 0.0002992250635
A144: 2007-07-25 | B144: 2007 | C144: 7692.549805 | D144: 0.0002141377176
A145: 2007-07-26 | B145: 2007 | C145: 7508.959961 | D145: 0.0005695825455
A146: 2007-07-27 | B146: 2007 | C146: 7451.680176 | D146: 5.818930648e-05
A147: 2007-07-30 | B147: 2007 | C147: 7456.310059 | D147: 3.860393884e-07
A148: 2007-07-31 | B148: 2007 | C148: 7584.140137 | D148: 0.0002939125898
A149: 2007-08-01 | B149: 2007 | C149: 7473.930176 | D149: 0.0002111684339
A150: 2007-08-02 | B150: 2007 | C150: 7534.129883 | D150: 6.487698854e-05
A151: 2007-08-03 | B151: 2007 | C151: 7435.669922 | D151: 0.0001707863327
A152: 2007-08-06 | B152: 2007 | C152: 7444.450195 | D152: 1.394362946e-06
A153: 2007-08-07 | B153: 2007 | C153: 7513.660156 | D153: 8.643148038e-05
A154: 2007-08-08 | B154: 2007 | C154: 7605.939941 | D154: 0.0001508377523
A155: 2007-08-09 | B155: 2007 | C155: 7453.589844 | D155: 0.0004012173329
A156: 2007-08-10 | B156: 2007 | C156: 7343.259766 | D156: 0.000219107311
A157: 2007-08-13 | B157: 2007 | C157: 7474.330078 | D157: 0.0003185890782
A158: 2007-08-14 | B158: 2007 | C158: 7425.069824 | D158: 4.34358923e-05
A159: 2007-08-15 | B159: 2007 | C159: 7445.899902 | D159: 7.870108294e-06
A160: 2007-08-16 | B160: 2007 | C160: 7270.069824 | D160: 0.000557637473
A161: 2007-08-17 | B161: 2007 | C161: 7378.290039 | D161: 0.000221584624
A162: 2007-08-20 | B162: 2007 | C162: 7407.529785 | D162: 1.570492059e-05
A163: 2007-08-21 | B163: 2007 | C163: 7424.75 | D163: 5.404186473e-06
A164: 2007-08-22 | B164: 2007 | C164: 7500.47998 | D164: 0.0001040332136
A165: 2007-08-23 | B165: 2007 | C165: 7511.959961 | D165: 2.342632835e-06
A166: 2007-08-24 | B166: 2007 | C166: 7507.27002 | D166: 3.897877889e-07
A167: 2007-08-27 | B167: 2007 | C167: 7485.990234 | D167: 8.034714303e-06
A168: 2007-08-28 | B168: 2007 | C168: 7430.240234 | D168: 5.546145144e-05
A169: 2007-08-29 | B169: 2007 | C169: 7439.180176 | D169: 1.447650389e-06
A170: 2007-08-30 | B170: 2007 | C170: 7519.939941 | D170: 0.000117852809
A171: 2007-08-31 | B171: 2007 | C171: 7638.169922 | D171: 0.0002471874945
A172: 2007-09-03 | B172: 2007 | C172: 7648.580078 | D172: 1.857530032e-06
A173: 2007-09-04 | B173: 2007 | C173: 7721.77002 | D173: 9.156746056e-05
A174: 2007-09-05 | B174: 2007 | C174: 7588.029785 | D174: 0.0002999787136
A175: 2007-09-06 | B175: 2007 | C175: 7621.720215 | D175: 1.971310586e-05
A176: 2007-09-07 | B176: 2007 | C176: 7436.629883 | D176: 0.0005897411935
A177: 2007-09-10 | B177: 2007 | C177: 7375.439941 | D177: 6.770297428e-05
A178: 2007-09-11 | B178: 2007 | C178: 7457.899902 | D178: 0.0001250001081
A179: 2007-09-12 | B179: 2007 | C179: 7472.990234 | D179: 4.094156968e-06
A180: 2007-09-13 | B180: 2007 | C180: 7535.970215 | D180: 7.102581424e-05
A181: 2007-09-14 | B181: 2007 | C181: 7497.740234 | D181: 2.573533452e-05
A182: 2007-09-17 | B182: 2007 | C182: 7479.850098 | D182: 5.693331929e-06
A183: 2007-09-18 | B183: 2007 | C183: 7575.209961 | D183: 0.0001625344583
A184: 2007-09-19 | B184: 2007 | C184: 7750.839844 | D184: 0.0005375359004
A185: 2007-09-20 | B185: 2007 | C185: 7735.089844 | D185: 4.129177859e-06
A186: 2007-09-21 | B186: 2007 | C186: 7794.430176 | D186: 5.885308307e-05
A187: 2007-09-24 | B187: 2007 | C187: 7787.919922 | D187: 6.976331744e-07
A188: 2007-09-25 | B188: 2007 | C188: 7769.439941 | D188: 5.630670142e-06
A189: 2007-09-26 | B189: 2007 | C189: 7804.149902 | D189: 1.995854252e-05
A190: 2007-09-27 | B190: 2007 | C190: 7853.790039 | D190: 4.045896209e-05
A191: 2007-09-28 | B191: 2007 | C191: 7861.509766 | D191: 9.661516745e-07
A192: 2007-10-01 | B192: 2007 | C192: 7922.419922 | D192: 6.00298844e-05
A193: 2007-10-02 | B193: 2007 | C193: 7946.790039 | D193: 9.462360985e-06
A194: 2007-10-03 | B194: 2007 | C194: 7955.299805 | D194: 1.146705139e-06
A195: 2007-10-04 | B195: =YEAR(A195) -> 2007 | C195: 7944.990234 | D195: 1.679453893e-06
A196: 2007-10-05 | B196: 2007 | C196: 8002.180176 | D196: =( (C196-C195)/C195 )^2 -> 5.181465094e-05
A197: 2007-10-08 | B197: 2007 | C197: 7974.370117 | D197: 1.207778152e-05
A198: 2007-10-09 | B198: 2007 | C198: 7980.439941 | D198: 5.793745569e-07
A199: 2007-10-10 | B199: 2007 | C199: 7986.569824 | D199: 5.899982229e-07
A200: 2007-10-11 | B200: 2007 | C200: 8033.689941 | D200: 3.480904709e-05
... 2336 more rows

Sheet DAX-Vols, mit vba, 2007-2016
A1: Date | B1: year | C1: Adj Close | E1: Date | F1: Log_2(S_t/S_0) | H1: year | I1: vol | J1: check: from excel
A2: 2007-01-02 | B2: =YEAR(A2) -> 2007 | C2: 6681.129883 | E2: 2007-01-02 | F2: =LOG(C2/$C$2,2) -> 0 | H2: 2007 | I2: 0.1548196613 | J2: 0.1548196613
A3: 2007-01-03 | B3: =YEAR(A3) -> 2007 | C3: 6691.319824 | E3: 2007-01-03 | F3: =LOG(C3/$C$2,2) -> 0.002198696651 | H3: 2008 | I3: 0.3804080718 | J3: 0.3804080718
A4: 2007-01-04 | B4: 2007 | C4: 6674.399902 | E4: 2007-01-04 | F4: -0.001453976172 | H4: 2009 | I4: 0.2854787969 | J4: 0.2854787969
A5: 2007-01-05 | B5: 2007 | C5: 6593.089844 | E5: 2007-01-05 | F5: -0.01913736442 | H5: 2010 | I5: 0.1842369893 | J5: 0.1842369893
A6: 2007-01-08 | B6: 2007 | C6: 6607.589844 | E6: 2007-01-08 | F6: -0.01596796905 | H6: 2011 | I6: 0.2904887905 | J6: 0.2904887905
A7: 2007-01-09 | B7: 2007 | C7: 6614.370117 | E7: 2007-01-09 | F7: -0.01448832955 | H7: 2012 | I7: 0.1919754691 | J7: 0.1919754691
A8: 2007-01-10 | B8: 2007 | C8: 6566.560059 | E8: 2007-01-10 | F8: -0.02495430353 | H8: 2013 | I8: 0.1467265593 | J8: 0.1467265593
A9: 2007-01-11 | B9: 2007 | C9: 6687.299805 | E9: 2007-01-11 | F9: 0.00133169216 | H9: 2014 | I9: 0.1671568177 | J9: 0.1671568177
A10: 2007-01-12 | B10: 2007 | C10: 6705.169922 | E10: 2007-01-12 | F10: 0.005181787774 | H10: 2015 | I10: 0.2354593597 | J10: 0.2354593597
A11: 2007-01-15 | B11: 2007 | C11: 6731.740234 | E11: 2007-01-15 | F11: 0.01088740117 | H11: 2016 | I11: 0.2092431857 | J11: 0.2092431857
A12: 2007-01-16 | B12: 2007 | C12: 6716.819824 | E12: 2007-01-16 | F12: 0.007686224207
A13: 2007-01-17 | B13: 2007 | C13: 6701.700195 | E13: 2007-01-17 | F13: 0.00443504256 | H13: total vol: | I13: 0.2353833181 | J13: 0.2353833181
A14: 2007-01-18 | B14: 2007 | C14: 6689.620117 | E14: 2007-01-18 | F14: 0.001832181461
A15: 2007-01-19 | B15: 2007 | C15: 6747.169922 | E15: 2007-01-19 | F15: 0.01419038989
A16: 2007-01-22 | B16: 2007 | C16: 6687.310059 | E16: 2007-01-22 | F16: 0.001333904321
A17: 2007-01-23 | B17: 2007 | C17: 6678.930176 | E17: 2007-01-23 | F17: -0.0004750736741
A18: 2007-01-24 | B18: 2007 | C18: 6748.370117 | E18: 2007-01-24 | F18: 0.01444699546
A19: 2007-01-25 | B19: 2007 | C19: 6719.580078 | E19: 2007-01-25 | F19: 0.008278972985
A20: 2007-01-26 | B20: 2007 | C20: 6690.339844 | E20: 2007-01-26 | F20: 0.001987390681
A21: 2007-01-29 | B21: 2007 | C21: 6726.009766 | E21: 2007-01-29 | F21: 0.009658768116
A22: 2007-01-30 | B22: 2007 | C22: 6788.22998 | E22: 2007-01-30 | F22: 0.0229433376
A23: 2007-01-31 | B23: 2007 | C23: 6789.109863 | E23: 2007-01-31 | F23: 0.02313032604
A24: 2007-02-01 | B24: 2007 | C24: 6851.279785 | E24: 2007-02-01 | F24: 0.036281396
A25: 2007-02-02 | B25: 2007 | C25: 6885.759766 | E25: 2007-02-02 | F25: 0.04352374278
A26: 2007-02-05 | B26: 2007 | C26: 6874.060059 | E26: 2007-02-05 | F26: 0.04107035116
A27: 2007-02-06 | B27: 2007 | C27: 6875.700195 | E27: 2007-02-06 | F27: 0.04141453404
A28: 2007-02-07 | B28: 2007 | C28: 6915.560059 | E28: 2007-02-07 | F28: 0.04975398775
A29: 2007-02-08 | B29: 2007 | C29: 6876.72998 | E29: 2007-02-08 | F29: 0.04163059269
A30: 2007-02-09 | B30: 2007 | C30: 6911.109863 | E30: 2007-02-09 | F30: 0.04882530775
A31: 2007-02-12 | B31: 2007 | C31: 6859.450195 | E31: 2007-02-12 | F31: 0.0380008393
A32: 2007-02-13 | B32: 2007 | C32: 6895.339844 | E32: 2007-02-13 | F32: 0.04552955271
A33: 2007-02-14 | B33: 2007 | C33: 6961.180176 | E33: 2007-02-14 | F33: 0.05923981116
A34: 2007-02-15 | B34: 2007 | C34: 6958.620117 | E34: 2007-02-15 | F34: 0.05870914486
A35: 2007-02-16 | B35: 2007 | C35: 6957.069824 | E35: 2007-02-16 | F35: 0.05838769475
A36: 2007-02-19 | B36: 2007 | C36: 6987.080078 | E36: 2007-02-19 | F36: 0.06459756939
A37: 2007-02-20 | B37: 2007 | C37: 6982.910156 | E37: 2007-02-20 | F37: 0.06373630523
A38: 2007-02-21 | B38: 2007 | C38: 6941.660156 | E38: 2007-02-21 | F38: 0.05518863113
A39: 2007-02-22 | B39: 2007 | C39: 6973.72998 | E39: 2007-02-22 | F39: 0.06183839912
A40: 2007-02-23 | B40: 2007 | C40: 6992.580078 | E40: 2007-02-23 | F40: 0.06573276482
A41: 2007-02-26 | B41: 2007 | C41: 7027.589844 | E41: 2007-02-26 | F41: 0.07293788731
A42: 2007-02-27 | B42: 2007 | C42: 6819.649902 | E42: 2007-02-27 | F42: 0.02960557251
A43: 2007-02-28 | B43: 2007 | C43: 6715.439941 | E43: 2007-02-28 | F43: 0.007389810885
A44: 2007-03-01 | B44: 2007 | C44: 6640.240234 | E44: 2007-03-01 | F44: -0.008856668433
A45: 2007-03-02 | B45: 2007 | C45: 6603.319824 | E45: 2007-03-02 | F45: -0.01690058263
A46: 2007-03-05 | B46: 2007 | C46: 6534.569824 | E46: 2007-03-05 | F46: -0.03199984014
A47: 2007-03-06 | B47: 2007 | C47: 6595 | E47: 2007-03-06 | F47: -0.01871944603
A48: 2007-03-07 | B48: 2007 | C48: 6617.75 | E48: 2007-03-07 | F48: -0.01375131379
A49: 2007-03-08 | B49: 2007 | C49: 6713.22998 | E49: 2007-03-08 | F49: 0.006914961206
A50: 2007-03-09 | B50: 2007 | C50: 6716.52002 | E50: 2007-03-09 | F50: 0.007621828346
A51: 2007-03-12 | B51: 2007 | C51: 6715.490234 | E51: 2007-03-12 | F51: 0.007400615418
A52: 2007-03-13 | B52: 2007 | C52: 6623.990234 | E52: 2007-03-13 | F52: -0.01239155969
A53: 2007-03-14 | B53: 2007 | C53: 6447.700195 | E53: 2007-03-14 | F53: -0.05130744248
A54: 2007-03-15 | B54: 2007 | C54: 6585.470215 | E54: 2007-03-15 | F54: -0.0208056502
A55: 2007-03-16 | B55: 2007 | C55: 6579.870117 | E55: 2007-03-16 | F55: -0.02203299927
A56: 2007-03-19 | B56: 2007 | C56: 6671.410156 | E56: 2007-03-19 | F56: -0.002100365081
A57: 2007-03-20 | B57: 2007 | C57: 6700.290039 | E57: 2007-03-20 | F57: 0.004131442118
A58: 2007-03-21 | B58: 2007 | C58: 6712.060059 | E58: 2007-03-21 | F58: 0.006663519453
A59: 2007-03-22 | B59: 2007 | C59: 6856.959961 | E59: 2007-03-22 | F59: 0.03747699257
A60: 2007-03-23 | B60: 2007 | C60: 6899.060059 | E60: 2007-03-23 | F60: 0.04630771427
A61: 2007-03-26 | B61: 2007 | C61: 6828.819824 | E61: 2007-03-26 | F61: 0.0315441639
A62: 2007-03-27 | B62: 2007 | C62: 6858.339844 | E62: 2007-03-27 | F62: 0.03776728887
A63: 2007-03-28 | B63: 2007 | C63: 6816.890137 | E63: 2007-03-28 | F63: 0.02902162683
A64: 2007-03-29 | B64: 2007 | C64: 6897.080078 | E64: 2007-03-29 | F64: 0.04589361166
A65: 2007-03-30 | B65: 2007 | C65: 6917.029785 | E65: 2007-03-30 | F65: 0.05006056323
A66: 2007-04-02 | B66: 2007 | C66: 6937.169922 | E66: 2007-04-02 | F66: 0.0542551175
A67: 2007-04-03 | B67: =YEAR(A67) -> 2007 | C67: 7045.560059 | E67: 2007-04-03 | F67: =LOG(C67/$C$2,2) -> 0.07662228694
A68: 2007-04-04 | B68: 2007 | C68: 7073.910156 | E68: 2007-04-04 | F68: 0.08241579033
A69: 2007-04-05 | B69: 2007 | C69: 7099.910156 | E69: 2007-04-05 | F69: 0.08770866301
A70: 2007-04-10 | B70: 2007 | C70: 7166.669922 | E70: 2007-04-10 | F70: 0.1012108038
A71: 2007-04-11 | B71: 2007 | C71: 7152.830078 | E71: 2007-04-11 | F71: 0.09842206389
A72: 2007-04-12 | B72: 2007 | C72: 7142.950195 | E72: 2007-04-12 | F72: 0.09642795651
A73: 2007-04-13 | B73: 2007 | C73: 7212.069824 | E73: 2007-04-13 | F73: 0.1103212589
A74: 2007-04-16 | B74: 2007 | C74: 7338.060059 | E74: 2007-04-16 | F74: 0.135306607
A75: 2007-04-17 | B75: 2007 | C75: 7348.830078 | E75: 2007-04-17 | F75: 0.137422488
A76: 2007-04-18 | B76: 2007 | C76: 7282.339844 | E76: 2007-04-18 | F76: 0.1243099629
A77: 2007-04-19 | B77: 2007 | C77: 7242.72998 | E77: 2007-04-19 | F77: 0.1164414849
A78: 2007-04-20 | B78: 2007 | C78: 7342.540039 | E78: 2007-04-20 | F78: 0.1361871221
A79: 2007-04-23 | B79: 2007 | C79: 7335.620117 | E79: 2007-04-23 | F79: 0.1348268238
A80: 2007-04-24 | B80: 2007 | C80: 7270.319824 | E80: 2007-04-24 | F80: 0.1219267247
A81: 2007-04-25 | B81: 2007 | C81: 7343.080078 | E81: 2007-04-25 | F81: 0.1362932275
A82: 2007-04-26 | B82: 2007 | C82: 7387.02002 | E82: 2007-04-26 | F82: 0.1449003821
A83: 2007-04-27 | B83: 2007 | C83: 7378.120117 | E83: 2007-04-27 | F83: 0.143161171
A84: 2007-04-30 | B84: 2007 | C84: 7408.870117 | E84: 2007-04-30 | F84: 0.1491614369
A85: 2007-05-02 | B85: 2007 | C85: 7455.930176 | E85: 2007-05-02 | F85: 0.1582962439
A86: 2007-05-03 | B86: 2007 | C86: 7476.689941 | E86: 2007-05-03 | F86: 0.1623076001
A87: 2007-05-04 | B87: 2007 | C87: 7516.759766 | E87: 2007-05-04 | F87: 0.1700187908
A88: 2007-05-07 | B88: 2007 | C88: 7525.689941 | E88: 2007-05-07 | F88: 0.171731746
A89: 2007-05-08 | B89: 2007 | C89: 7442.200195 | E89: 2007-05-08 | F89: 0.1556370939
A90: 2007-05-09 | B90: 2007 | C90: 7475.990234 | E90: 2007-05-09 | F90: 0.162172579
A91: 2007-05-10 | B91: 2007 | C91: 7415.330078 | E91: 2007-05-10 | F91: 0.1504188072
A92: 2007-05-11 | B92: 2007 | C92: 7479.339844 | E92: 2007-05-11 | F92: 0.1628188323
A93: 2007-05-14 | B93: 2007 | C93: 7459.609863 | E93: 2007-05-14 | F93: 0.1590080741
A94: 2007-05-15 | B94: 2007 | C94: 7505.350098 | E94: 2007-05-15 | F94: 0.1678272645
A95: 2007-05-16 | B95: 2007 | C95: 7481.25 | E95: 2007-05-16 | F95: 0.1631872365
A96: 2007-05-17 | B96: 2007 | C96: 7499.5 | E96: 2007-05-17 | F96: 0.1667023072
A97: 2007-05-18 | B97: 2007 | C97: 7607.540039 | E97: 2007-05-18 | F97: 0.1873379163
A98: 2007-05-21 | B98: 2007 | C98: 7619.310059 | E98: 2007-05-21 | F98: 0.1895682597
A99: 2007-05-22 | B99: 2007 | C99: 7659.390137 | E99: 2007-05-22 | F99: 0.1971374196
A100: 2007-05-23 | B100: 2007 | C100: 7735.879883 | E100: 2007-05-23 | F100: 0.2114732884
A101: 2007-05-24 | B101: 2007 | C101: 7697.379883 | E101: 2007-05-24 | F101: 0.2042753438
A102: 2007-05-25 | B102: 2007 | C102: 7739.200195 | E102: 2007-05-25 | F102: 0.2120923737
A103: 2007-05-29 | B103: 2007 | C103: 7781.040039 | E103: 2007-05-29 | F103: 0.2198708979
A104: 2007-05-30 | B104: 2007 | C104: 7764.970215 | E104: 2007-05-30 | F104: 0.2168882852
A105: 2007-05-31 | B105: 2007 | C105: 7883.040039 | E105: 2007-05-31 | F105: 0.2386599967
A106: 2007-06-01 | B106: 2007 | C106: 7987.850098 | E106: 2007-06-01 | F106: 0.2577151536
A107: 2007-06-04 | B107: 2007 | C107: 7976.790039 | E107: 2007-06-04 | F107: 0.255716199
A108: 2007-06-05 | B108: 2007 | C108: 7919.830078 | E108: 2007-06-05 | F108: 0.2453773717
A109: 2007-06-06 | B109: 2007 | C109: 7730.049805 | E109: 2007-06-06 | F109: 0.210385604
A110: 2007-06-07 | B110: 2007 | C110: 7618.609863 | E110: 2007-06-07 | F110: 0.1894356735
A111: 2007-06-08 | B111: 2007 | C111: 7590.5 | E111: 2007-06-08 | F111: 0.1841028162
A112: 2007-06-11 | B112: 2007 | C112: 7706.100098 | E112: 2007-06-11 | F112: 0.2059088204
A113: 2007-06-12 | B113: 2007 | C113: 7678.259766 | E113: 2007-06-12 | F113: 0.2006872638
A114: 2007-06-13 | B114: 2007 | C114: 7680.759766 | E114: 2007-06-13 | F114: 0.2011569211
A115: 2007-06-14 | B115: 2007 | C115: 7849.160156 | E115: 2007-06-14 | F115: 0.2324461914
A116: 2007-06-15 | B116: 2007 | C116: 8030.640137 | E116: 2007-06-15 | F116: 0.2654228867
A117: 2007-06-18 | B117: 2007 | C117: 8036.120117 | E117: 2007-06-18 | F117: 0.2664070229
A118: 2007-06-19 | B118: 2007 | C118: 8033.52002 | E118: 2007-06-19 | F118: 0.2659401615
A119: 2007-06-20 | B119: 2007 | C119: 8090.490234 | E119: 2007-06-20 | F119: 0.2761350183
A120: 2007-06-21 | B120: 2007 | C120: 7964.709961 | E120: 2007-06-21 | F120: 0.2535297207
A121: 2007-06-22 | B121: 2007 | C121: 7949.629883 | E121: 2007-06-22 | F121: 0.2507955878
A122: 2007-06-25 | B122: 2007 | C122: 7930.609863 | E122: 2007-06-25 | F122: 0.2473397078
A123: 2007-06-26 | B123: 2007 | C123: 7860.52002 | E123: 2007-06-26 | F123: 0.234532653
A124: 2007-06-27 | B124: 2007 | C124: 7801.22998 | E124: 2007-06-27 | F124: 0.2236094987
A125: 2007-06-28 | B125: 2007 | C125: 7921.359863 | E125: 2007-06-28 | F125: 0.2456560141
A126: 2007-06-29 | B126: 2007 | C126: 8007.319824 | E126: 2007-06-29 | F126: 0.2612273252
A127: 2007-07-02 | B127: 2007 | C127: 7958.240234 | E127: 2007-07-02 | F127: 0.2523573446
A128: 2007-07-03 | B128: 2007 | C128: 8050.680176 | E128: 2007-07-03 | F128: 0.2690185715
A129: 2007-07-04 | B129: 2007 | C129: 8075.259766 | E129: 2007-07-04 | F129: 0.2734165638
A130: 2007-07-05 | B130: 2007 | C130: 7987.129883 | E130: 2007-07-05 | F130: 0.2575850688
A131: 2007-07-06 | B131: =YEAR(A131) -> 2007 | C131: 8048.319824 | E131: 2007-07-06 | F131: =LOG(C131/$C$2,2) -> 0.2685955306
A132: 2007-07-09 | B132: 2007 | C132: 8077.390137 | E132: 2007-07-09 | F132: 0.2737971176
A133: 2007-07-10 | B133: 2007 | C133: 7964.759766 | E133: 2007-07-10 | F133: 0.2535387422
A134: 2007-07-11 | B134: 2007 | C134: 7898.540039 | E134: 2007-07-11 | F134: 0.2414939056
A135: 2007-07-12 | B135: 2007 | C135: 8053.430176 | E135: 2007-07-12 | F135: 0.2695112919
A136: 2007-07-13 | B136: 2007 | C136: 8092.77002 | E136: 2007-07-13 | F136: 0.2765414921
A137: 2007-07-16 | B137: 2007 | C137: 8105.689941 | E137: 2007-07-16 | F137: 0.2788428849
A138: 2007-07-17 | B138: 2007 | C138: 8038.209961 | E138: 2007-07-17 | F138: 0.2667821561
A139: 2007-07-18 | B139: 2007 | C139: 7893.609863 | E139: 2007-07-18 | F139: 0.2405931111
A140: 2007-07-19 | B140: 2007 | C140: 7991.209961 | E140: 2007-07-19 | F140: 0.2583218548
A141: 2007-07-20 | B141: 2007 | C141: 7874.850098 | E141: 2007-07-20 | F141: 0.2371603558
A142: 2007-07-23 | B142: 2007 | C142: 7944.209961 | E142: 2007-07-23 | F142: 0.2498116475
A143: 2007-07-24 | B143: 2007 | C143: 7806.790039 | E143: 2007-07-24 | F143: 0.2246373639
A144: 2007-07-25 | B144: 2007 | C144: 7692.549805 | E144: 2007-07-25 | F144: 0.2033697737
A145: 2007-07-26 | B145: 2007 | C145: 7508.959961 | E145: 2007-07-26 | F145: 0.1685209936
A146: 2007-07-27 | B146: 2007 | C146: 7451.680176 | E146: 2007-07-27 | F146: 0.15747365
A147: 2007-07-30 | B147: 2007 | C147: 7456.310059 | E147: 2007-07-30 | F147: 0.158369748
A148: 2007-07-31 | B148: 2007 | C148: 7584.140137 | E148: 2007-07-31 | F148: 0.1828935166
A149: 2007-08-01 | B149: 2007 | C149: 7473.930176 | E149: 2007-08-01 | F149: 0.1617749801
A150: 2007-08-02 | B150: 2007 | C150: 7534.129883 | E150: 2007-08-02 | F150: 0.173348799
A151: 2007-08-03 | B151: 2007 | C151: 7435.669922 | E151: 2007-08-03 | F151: 0.1543706233
A152: 2007-08-06 | B152: 2007 | C152: 7444.450195 | E152: 2007-08-06 | F152: 0.1560731979
A153: 2007-08-07 | B153: 2007 | C153: 7513.660156 | E153: 2007-08-07 | F153: 0.1694237586
A154: 2007-08-08 | B154: 2007 | C154: 7605.939941 | E154: 2007-08-08 | F154: 0.1870344415
A155: 2007-08-09 | B155: 2007 | C155: 7453.589844 | E155: 2007-08-09 | F155: 0.1578433271
A156: 2007-08-10 | B156: 2007 | C156: 7343.259766 | E156: 2007-08-10 | F156: 0.1363285303
A157: 2007-08-13 | B157: 2007 | C157: 7474.330078 | E157: 2007-08-13 | F157: 0.1618521713
A158: 2007-08-14 | B158: 2007 | C158: 7425.069824 | E158: 2007-08-14 | F158: 0.1523124873
A159: 2007-08-15 | B159: 2007 | C159: 7445.899902 | E159: 2007-08-15 | F159: 0.1563541161
A160: 2007-08-16 | B160: 2007 | C160: 7270.069824 | E160: 2007-08-16 | F160: 0.1218771148
A161: 2007-08-17 | B161: 2007 | C161: 7378.290039 | E161: 2007-08-17 | F161: 0.1431943967
A162: 2007-08-20 | B162: 2007 | C162: 7407.529785 | E162: 2007-08-20 | F162: 0.1489004166
A163: 2007-08-21 | B163: 2007 | C163: 7424.75 | E163: 2007-08-21 | F163: 0.152250344
A164: 2007-08-22 | B164: 2007 | C164: 7500.47998 | E164: 2007-08-22 | F164: 0.1668908158
A165: 2007-08-23 | B165: 2007 | C165: 7511.959961 | E165: 2007-08-23 | F165: 0.1690972679
A166: 2007-08-24 | B166: 2007 | C166: 7507.27002 | E166: 2007-08-24 | F166: 0.168196269
A167: 2007-08-27 | B167: 2007 | C167: 7485.990234 | E167: 2007-08-27 | F167: 0.1641010606
A168: 2007-08-28 | B168: 2007 | C168: 7430.240234 | E168: 2007-08-28 | F168: 0.1533167511
A169: 2007-08-29 | B169: 2007 | C169: 7439.180176 | E169: 2007-08-29 | F169: 0.1550515345
A170: 2007-08-30 | B170: 2007 | C170: 7519.939941 | E170: 2007-08-30 | F170: 0.1706290342
A171: 2007-08-31 | B171: 2007 | C171: 7638.169922 | E171: 2007-08-31 | F171: 0.1931349096
A172: 2007-09-03 | B172: 2007 | C172: 7648.580078 | E172: 2007-09-03 | F172: 0.1950998378
A173: 2007-09-04 | B173: 2007 | C173: 7721.77002 | E173: 2007-09-04 | F173: 0.2088394812
A174: 2007-09-05 | B174: 2007 | C174: 7588.029785 | E174: 2007-09-05 | F174: 0.1836332362
A175: 2007-09-06 | B175: 2007 | C175: 7621.720215 | E175: 2007-09-06 | F175: 0.1900245439
A176: 2007-09-07 | B176: 2007 | C176: 7436.629883 | E176: 2007-09-07 | F176: 0.1545568663
A177: 2007-09-10 | B177: 2007 | C177: 7375.439941 | E177: 2007-09-10 | F177: 0.1426370024
A178: 2007-09-11 | B178: 2007 | C178: 7457.899902 | E178: 2007-09-11 | F178: 0.1586773283
A179: 2007-09-12 | B179: 2007 | C179: 7472.990234 | E179: 2007-09-12 | F179: 0.1615935314
A180: 2007-09-13 | B180: 2007 | C180: 7535.970215 | E180: 2007-09-13 | F180: 0.1737011574
A181: 2007-09-14 | B181: 2007 | C181: 7497.740234 | E181: 2007-09-14 | F181: 0.1663637375
A182: 2007-09-17 | B182: 2007 | C182: 7479.850098 | E182: 2007-09-17 | F182: 0.1629172522
A183: 2007-09-18 | B183: 2007 | C183: 7575.209961 | E183: 2007-09-18 | F183: 0.1811937706
A184: 2007-09-19 | B184: 2007 | C184: 7750.839844 | E184: 2007-09-19 | F184: 0.2142605369
A185: 2007-09-20 | B185: 2007 | C185: 7735.089844 | E185: 2007-09-20 | F185: 0.2113259433
A186: 2007-09-21 | B186: 2007 | C186: 7794.430176 | E186: 2007-09-21 | F186: 0.2223514508
A187: 2007-09-24 | B187: 2007 | C187: 7787.919922 | E187: 2007-09-24 | F187: 0.2211459444
A188: 2007-09-25 | B188: 2007 | C188: 7769.439941 | E188: 2007-09-25 | F188: 0.2177185004
A189: 2007-09-26 | B189: 2007 | C189: 7804.149902 | E189: 2007-09-26 | F189: 0.224149384
A190: 2007-09-27 | B190: 2007 | C190: 7853.790039 | E190: 2007-09-27 | F190: 0.2332969244
A191: 2007-09-28 | B191: 2007 | C191: 7861.509766 | E191: 2007-09-28 | F191: 0.2347142964
A192: 2007-10-01 | B192: 2007 | C192: 7922.419922 | E192: 2007-10-01 | F192: 0.2458490667
A193: 2007-10-02 | B193: 2007 | C193: 7946.790039 | E193: 2007-10-02 | F193: 0.2502801222
A194: 2007-10-03 | B194: 2007 | C194: 7955.299805 | E194: 2007-10-03 | F194: 0.2518241958
A195: 2007-10-04 | B195: =YEAR(A195) -> 2007 | C195: 7944.990234 | E195: 2007-10-04 | F195: =LOG(C195/$C$2,2) -> 0.2499533407
A196: 2007-10-05 | B196: 2007 | C196: 8002.180176 | E196: 2007-10-05 | F196: 0.2603010071
A197: 2007-10-08 | B197: 2007 | C197: 7974.370117 | E197: 2007-10-08 | F197: 0.2552784616
A198: 2007-10-09 | B198: 2007 | C198: 7980.439941 | E198: 2007-10-09 | F198: 0.2563761752
A199: 2007-10-10 | B199: 2007 | C199: 7986.569824 | E199: 2007-10-10 | F199: 0.2574839032
A200: 2007-10-11 | B200: 2007 | C200: 8033.689941 | E200: 2007-10-11 | F200: 0.2659706764
... 2336 more rows

Sheet CBK-Vols, mit vba, 2007-2016
A1: Date | B1: year | C1: Adj Close | E1: Date | F1: Log_2(S_t/S_0) | H1: year | I1: vol
A2: 2007-01-02 | B2: =YEAR(A2) -> 2007 | C2: 236.485001 | E2: 2007-01-02 | F2: =LOG(C2/$C$2,2) -> 0 | H2: 2007 | I2: 0.2896713701
A3: 2007-01-03 | B3: =YEAR(A3) -> 2007 | C3: 239.369995 | E3: 2007-01-03 | F3: =LOG(C3/$C$2,2) -> 0.01749363806 | H3: 2008 | I3: 0.8594942007
A4: 2007-01-04 | B4: 2007 | C4: 239.289993 | E4: 2007-01-04 | F4: 0.01701138137 | H4: 2009 | I4: 0.7700444933
A5: 2007-01-05 | B5: 2007 | C5: 236.725006 | E5: 2007-01-05 | F5: 0.001463426588 | H5: 2010 | I5: 0.3007209376
A6: 2007-01-08 | B6: 2007 | C6: 237.847 | E6: 2007-01-08 | F6: 0.008285144579 | H6: 2011 | I6: 0.6369665044
A7: 2007-01-09 | B7: 2007 | C7: 242.255005 | E7: 2007-01-09 | F7: 0.03477778819 | H7: 2012 | I7: 0.5037961762
A8: 2007-01-10 | B8: 2007 | C8: 247.302994 | E8: 2007-01-10 | F8: 0.06453102207 | H8: 2013 | I8: 0.4620990037
A9: 2007-01-11 | B9: 2007 | C9: 250.828995 | E9: 2007-01-11 | F9: 0.08495544464 | H9: 2014 | I9: 0.3281665002
A10: 2007-01-12 | B10: 2007 | C10: 253.714005 | E10: 2007-01-12 | F10: 0.1014544744 | H10: 2015 | I10: 0.2975210765
A11: 2007-01-15 | B11: 2007 | C11: 253.554001 | E11: 2007-01-15 | F11: 0.1005443559 | H11: 2016 | I11: 0.4595977646
A12: 2007-01-16 | B12: 2007 | C12: 252.192001 | E12: 2007-01-16 | F12: 0.09277383323
A13: 2007-01-17 | B13: 2007 | C13: 251.389999 | E13: 2007-01-17 | F13: 0.08817857253 | H13: total vol | I13: 0.5278783894
A14: 2007-01-18 | B14: 2007 | C14: 252.272003 | E14: 2007-01-18 | F14: 0.09323142184
A15: 2007-01-19 | B15: 2007 | C15: 263.571014 | E15: 2007-01-19 | F15: 0.156443036
A16: 2007-01-22 | B16: 2007 | C16: 259.243988 | E16: 2007-01-22 | F16: 0.1325618487
A17: 2007-01-23 | B17: 2007 | C17: 262.049011 | E17: 2007-01-23 | F17: 0.1480879802
A18: 2007-01-24 | B18: 2007 | C18: 260.365997 | E18: 2007-01-24 | F18: 0.1387923654
A19: 2007-01-25 | B19: 2007 | C19: 261.087006 | E19: 2007-01-25 | F19: 0.1427819743
A20: 2007-01-26 | B20: 2007 | C20: 262.449005 | E20: 2007-01-26 | F20: 0.1502884441
A21: 2007-01-29 | B21: 2007 | C21: 260.765991 | E21: 2007-01-29 | F21: 0.1410070422
A22: 2007-01-30 | B22: 2007 | C22: 260.446014 | E22: 2007-01-30 | F22: 0.1392356736
A23: 2007-01-31 | B23: 2007 | C23: 259.88501 | E23: 2007-01-31 | F23: 0.1361247386
A24: 2007-02-01 | B24: 2007 | C24: 260.526001 | E24: 2007-02-01 | F24: 0.1396786795
A25: 2007-02-02 | B25: 2007 | C25: 261.40799 | E25: 2007-02-02 | F25: 0.1445545542
A26: 2007-02-05 | B26: 2007 | C26: 262.929993 | E26: 2007-02-05 | F26: 0.1529300388
A27: 2007-02-06 | B27: 2007 | C27: 259.88501 | E27: 2007-02-06 | F27: 0.1361247386
A28: 2007-02-07 | B28: 2007 | C28: 258.842987 | E28: 2007-02-07 | F28: 0.130328547
A29: 2007-02-08 | B29: 2007 | C29: 257.640991 | E29: 2007-02-08 | F29: 0.1236134624
A30: 2007-02-09 | B30: 2007 | C30: 256.118011 | E30: 2007-02-09 | F30: 0.1150600273
A31: 2007-02-12 | B31: 2007 | C31: 253.714005 | E31: 2007-02-12 | F31: 0.1014544744
A32: 2007-02-13 | B32: 2007 | C32: 255.237 | E32: 2007-02-13 | F32: 0.1100887982
A33: 2007-02-14 | B33: 2007 | C33: 256.839996 | E33: 2007-02-14 | F33: 0.1191211974
A34: 2007-02-15 | B34: 2007 | C34: 259.644989 | E34: 2007-02-15 | F34: 0.1347916986
A35: 2007-02-16 | B35: 2007 | C35: 260.846985 | E35: 2007-02-16 | F35: 0.1414550742
A36: 2007-02-19 | B36: 2007 | C36: 263.089996 | E36: 2007-02-19 | F36: 0.1538077071
A37: 2007-02-20 | B37: 2007 | C37: 263.812012 | E37: 2007-02-20 | F37: 0.1577615716
A38: 2007-02-21 | B38: 2007 | C38: 266.216003 | E38: 2007-02-21 | F38: 0.1708486144
A39: 2007-02-22 | B39: 2007 | C39: 264.372986 | E39: 2007-02-22 | F39: 0.1608260839
A40: 2007-02-23 | B40: 2007 | C40: 263.651001 | E40: 2007-02-23 | F40: 0.1568807903
A41: 2007-02-26 | B41: 2007 | C41: 264.131989 | E41: 2007-02-26 | F41: 0.1595103528
A42: 2007-02-27 | B42: 2007 | C42: 253.875 | E42: 2007-02-27 | F42: 0.1023696506
A43: 2007-02-28 | B43: 2007 | C43: 250.028 | E43: 2007-02-28 | F43: 0.08034098378
A44: 2007-03-01 | B44: 2007 | C44: 246.181 | E44: 2007-03-01 | F44: 0.05797073647
A45: 2007-03-02 | B45: 2007 | C45: 245.701004 | E45: 2007-03-02 | F45: 0.05515506904
A46: 2007-03-05 | B46: 2007 | C46: 246.261993 | E46: 2007-03-05 | F46: 0.05844530186
A47: 2007-03-06 | B47: 2007 | C47: 247.143005 | E47: 2007-03-06 | F47: 0.0635973899
A48: 2007-03-07 | B48: 2007 | C48: 249.386993 | E48: 2007-03-07 | F48: 0.07663753818
A49: 2007-03-08 | B49: 2007 | C49: 251.951004 | E49: 2007-03-08 | F49: 0.09139452141
A50: 2007-03-09 | B50: 2007 | C50: 252.031006 | E50: 2007-03-09 | F50: 0.09185254764
A51: 2007-03-12 | B51: 2007 | C51: 254.595993 | E51: 2007-03-12 | F51: 0.1064610294
A52: 2007-03-13 | B52: 2007 | C52: 247.302994 | E52: 2007-03-13 | F52: 0.06453102207
A53: 2007-03-14 | B53: 2007 | C53: 240.731995 | E53: 2007-03-14 | F53: 0.02567921512
A54: 2007-03-15 | B54: 2007 | C54: 243.776993 | E54: 2007-03-15 | F54: 0.0438132909
A55: 2007-03-16 | B55: 2007 | C55: 243.056 | E55: 2007-03-16 | F55: 0.03954006455
A56: 2007-03-19 | B56: 2007 | C56: 253.072998 | E56: 2007-03-19 | F56: 0.09780490126
A57: 2007-03-20 | B57: 2007 | C57: 253.153 | E57: 2007-03-20 | F57: 0.09826089716
A58: 2007-03-21 | B58: 2007 | C58: 255.477005 | E58: 2007-03-21 | F58: 0.1114447589
A59: 2007-03-22 | B59: 2007 | C59: 262.929993 | E59: 2007-03-22 | F59: 0.1529300388
A60: 2007-03-23 | B60: 2007 | C60: 267.417999 | E60: 2007-03-23 | F60: 0.1773478877
A61: 2007-03-26 | B61: 2007 | C61: 258.923004 | E61: 2007-03-26 | F61: 0.1307744632
A62: 2007-03-27 | B62: 2007 | C62: 259.725006 | E62: 2007-03-27 | F62: 0.1352362377
A63: 2007-03-28 | B63: 2007 | C63: 259.164001 | E63: 2007-03-28 | F63: 0.1321166517
A64: 2007-03-29 | B64: 2007 | C64: 259.804993 | E64: 2007-03-29 | F64: 0.1356804732
A65: 2007-03-30 | B65: 2007 | C65: 265.414001 | E65: 2007-03-30 | F65: 0.1664957932
A66: 2007-04-02 | B66: 2007 | C66: 265.334015 | E66: 2007-04-02 | F66: 0.1660609526
A67: 2007-04-03 | B67: =YEAR(A67) -> 2007 | C67: 267.096985 | E67: 2007-04-03 | F67: =LOG(C67/$C$2,2) -> 0.175615007
A68: 2007-04-04 | B68: 2007 | C68: 268.779999 | E68: 2007-04-04 | F68: 0.1846771015
A69: 2007-04-05 | B69: 2007 | C69: 268.378998 | E69: 2007-04-05 | F69: 0.1825230939
A70: 2007-04-10 | B70: 2007 | C70: 274.390015 | E70: 2007-04-10 | F70: 0.2144792992
A71: 2007-04-11 | B71: 2007 | C71: 273.989014 | E71: 2007-04-11 | F71: 0.2123693634
A72: 2007-04-12 | B72: 2007 | C72: 274.470001 | E72: 2007-04-12 | F72: 0.2148997904
A73: 2007-04-13 | B73: 2007 | C73: 273.989014 | E73: 2007-04-13 | F73: 0.2123693634
A74: 2007-04-16 | B74: 2007 | C74: 284.566986 | E74: 2007-04-16 | F74: 0.2670196136
A75: 2007-04-17 | B75: 2007 | C75: 284.247009 | E75: 2007-04-17 | F75: 0.2653964845
A76: 2007-04-18 | B76: 2007 | C76: 281.761993 | E76: 2007-04-18 | F76: 0.2527283351
A77: 2007-04-19 | B77: 2007 | C77: 278.636993 | E77: 2007-04-19 | F77: 0.2366381249
A78: 2007-04-20 | B78: 2007 | C78: 288.734009 | E78: 2007-04-20 | F78: 0.2879923638
A79: 2007-04-23 | B79: 2007 | C79: 290.89801 | E79: 2007-04-23 | F79: 0.2987647433
A80: 2007-04-24 | B80: 2007 | C80: 283.204987 | E80: 2007-04-24 | F80: 0.2600979864
A81: 2007-04-25 | B81: 2007 | C81: 289.054993 | E81: 2007-04-25 | F81: 0.2895953091
A82: 2007-04-26 | B82: 2007 | C82: 294.664001 | E82: 2007-04-26 | F82: 0.3173221338
A83: 2007-04-27 | B83: 2007 | C83: 294.904999 | E83: 2007-04-27 | F83: 0.3185015941
A84: 2007-04-30 | B84: 2007 | C84: 294.503998 | E84: 2007-04-30 | F84: 0.3165385354
A85: 2007-05-02 | B85: 2007 | C85: 294.503998 | E85: 2007-05-02 | F85: 0.3165385354
A86: 2007-05-03 | B86: 2007 | C86: 292.100006 | E86: 2007-05-03 | F86: 0.3047137039
A87: 2007-05-04 | B87: 2007 | C87: 295.626007 | E87: 2007-05-04 | F87: 0.3220245089
A88: 2007-05-07 | B88: 2007 | C88: 293.462006 | E88: 2007-05-07 | F88: 0.3114250484
A89: 2007-05-08 | B89: 2007 | C89: 292.580994 | E89: 2007-05-08 | F89: 0.3070873714
A90: 2007-05-09 | B90: 2007 | C90: 300.755005 | E90: 2007-05-09 | F90: 0.3468400622
A91: 2007-05-10 | B91: 2007 | C91: 293.062012 | E91: 2007-05-10 | F91: 0.3094572877
A92: 2007-05-11 | B92: 2007 | C92: 295.54599 | E92: 2007-05-11 | F92: 0.3216339622
A93: 2007-05-14 | B93: 2007 | C93: 294.18399 | E93: 2007-05-14 | F93: 0.3149700509
A94: 2007-05-15 | B94: 2007 | C94: 290.89801 | E94: 2007-05-15 | F94: 0.2987647433
A95: 2007-05-16 | B95: 2007 | C95: 290.016998 | E95: 2007-05-16 | F95: 0.2943887757
A96: 2007-05-17 | B96: 2007 | C96: 286.089996 | E96: 2007-05-17 | F96: 0.2747203665
A97: 2007-05-18 | B97: 2007 | C97: 288.493988 | E97: 2007-05-18 | F97: 0.2867925706
A98: 2007-05-21 | B98: 2007 | C98: 291.539001 | E98: 2007-05-21 | F98: 0.3019402108
A99: 2007-05-22 | B99: 2007 | C99: 294.584015 | E99: 2007-05-22 | F99: 0.3169304637
A100: 2007-05-23 | B100: 2007 | C100: 295.225006 | E100: 2007-05-23 | F100: 0.3200662411
A101: 2007-05-24 | B101: 2007 | C101: 292.740997 | E101: 2007-05-24 | F101: 0.3078761186
A102: 2007-05-25 | B102: 2007 | C102: 292.019989 | E102: 2007-05-25 | F102: 0.3043184422
A103: 2007-05-29 | B103: 2007 | C103: 295.385986 | E103: 2007-05-29 | F103: 0.320852698
A104: 2007-05-30 | B104: 2007 | C104: 292.42099 | E104: 2007-05-30 | F104: 0.3062981879
A105: 2007-05-31 | B105: 2007 | C105: 292.981995 | E105: 2007-05-31 | F105: 0.3090633237
A106: 2007-06-01 | B106: 2007 | C106: 293.622986 | E106: 2007-06-01 | F106: 0.3122162287
A107: 2007-06-04 | B107: 2007 | C107: 296.507996 | E107: 2007-06-04 | F107: 0.3263223269
A108: 2007-06-05 | B108: 2007 | C108: 298.67099 | E108: 2007-06-05 | F108: 0.3368084312
A109: 2007-06-06 | B109: 2007 | C109: 291.378998 | E109: 2007-06-06 | F109: 0.3011482107
A110: 2007-06-07 | B110: 2007 | C110: 284.085999 | E110: 2007-06-07 | F110: 0.2645790471
A111: 2007-06-08 | B111: 2007 | C111: 282.403015 | E111: 2007-06-08 | F111: 0.2560068073
A112: 2007-06-11 | B112: 2007 | C112: 287.131989 | E112: 2007-06-11 | F112: 0.2799653844
A113: 2007-06-12 | B113: 2007 | C113: 282.563995 | E113: 2007-06-12 | F113: 0.2568289617
A114: 2007-06-13 | B114: 2007 | C114: 282.002991 | E114: 2007-06-13 | F114: 0.2539617804
A115: 2007-06-14 | B115: 2007 | C115: 284.487 | E115: 2007-06-14 | F115: 0.2666140443
A116: 2007-06-15 | B116: 2007 | C116: 294.825012 | E116: 2007-06-15 | F116: 0.3181102393
A117: 2007-06-18 | B117: 2007 | C117: 295.626007 | E117: 2007-06-18 | F117: 0.3220245089
A118: 2007-06-19 | B118: 2007 | C118: 293.462006 | E118: 2007-06-19 | F118: 0.3114250484
A119: 2007-06-20 | B119: 2007 | C119: 293.942993 | E119: 2007-06-20 | F119: 0.3137877035
A120: 2007-06-21 | B120: 2007 | C120: 289.375 | E120: 2007-06-21 | F120: 0.2911916045
A121: 2007-06-22 | B121: 2007 | C121: 286.089996 | E121: 2007-06-22 | F121: 0.2747203665
A122: 2007-06-25 | B122: 2007 | C122: 284.166992 | E122: 2007-06-25 | F122: 0.2649903012
A123: 2007-06-26 | B123: 2007 | C123: 281.121002 | E123: 2007-06-26 | F123: 0.2494425548
A124: 2007-06-27 | B124: 2007 | C124: 276.393005 | E124: 2007-06-27 | F124: 0.2249724203
A125: 2007-06-28 | B125: 2007 | C125: 280.23999 | E125: 2007-06-28 | F125: 0.2449141579
A126: 2007-06-29 | B126: 2007 | C126: 284.407013 | E126: 2007-06-29 | F126: 0.2662083559
A127: 2007-07-02 | B127: 2007 | C127: 281.121002 | E127: 2007-07-02 | F127: 0.2494425548
A128: 2007-07-03 | B128: 2007 | C128: 283.925995 | E128: 2007-07-03 | F128: 0.2637662579
A129: 2007-07-04 | B129: 2007 | C129: 285.929993 | E129: 2007-07-04 | F129: 0.2739132774
A130: 2007-07-05 | B130: 2007 | C130: 282.322998 | E130: 2007-07-05 | F130: 0.2555979714
A131: 2007-07-06 | B131: =YEAR(A131) -> 2007 | C131: 285.127991 | E131: 2007-07-06 | F131: =LOG(C131/$C$2,2) -> 0.2698609916
A132: 2007-07-09 | B132: 2007 | C132: 285.769012 | E132: 2007-07-09 | F132: 0.2731007992
A133: 2007-07-10 | B133: 2007 | C133: 280.07901 | E133: 2007-07-10 | F133: 0.2440851835
A134: 2007-07-11 | B134: 2007 | C134: 277.835999 | E134: 2007-07-11 | F134: 0.2324848564
A135: 2007-07-12 | B135: 2007 | C135: 281.923004 | E135: 2007-07-12 | F135: 0.253552518
A136: 2007-07-13 | B136: 2007 | C136: 281.121002 | E136: 2007-07-13 | F136: 0.2494425548
A137: 2007-07-16 | B137: 2007 | C137: 283.846008 | E137: 2007-07-16 | F137: 0.2633597678
A138: 2007-07-17 | B138: 2007 | C138: 279.838989 | E138: 2007-07-17 | F138: 0.2428482983
A139: 2007-07-18 | B139: 2007 | C139: 276.393005 | E139: 2007-07-18 | F139: 0.2249724203
A140: 2007-07-19 | B140: 2007 | C140: 277.996002 | E140: 2007-07-19 | F140: 0.2333154511
A141: 2007-07-20 | B141: 2007 | C141: 270.303009 | E141: 2007-07-20 | F141: 0.1928288881
A142: 2007-07-23 | B142: 2007 | C142: 272.867004 | E142: 2007-07-23 | F142: 0.2064492657
A143: 2007-07-24 | B143: 2007 | C143: 269.260986 | E143: 2007-07-24 | F143: 0.1872565248
A144: 2007-07-25 | B144: 2007 | C144: 265.654999 | E144: 2007-07-25 | F144: 0.1678051773
A145: 2007-07-26 | B145: 2007 | C145: 256.118011 | E145: 2007-07-26 | F145: 0.1150600273
A146: 2007-07-27 | B146: 2007 | C146: 254.115005 | E146: 2007-07-27 | F146: 0.1037328824
A147: 2007-07-30 | B147: 2007 | C147: 246.582001 | E147: 2007-07-30 | F147: 0.06031881163
A148: 2007-07-31 | B148: 2007 | C148: 253.875 | E148: 2007-07-31 | F148: 0.1023696506
A149: 2007-08-01 | B149: 2007 | C149: 244.819 | E149: 2007-08-01 | F149: 0.04996684366
A150: 2007-08-02 | B150: 2007 | C150: 243.776993 | E150: 2007-08-02 | F150: 0.0438132909
A151: 2007-08-03 | B151: 2007 | C151: 233.440002 | E151: 2007-08-03 | F151: -0.01869688318
A152: 2007-08-06 | B152: 2007 | C152: 236.645004 | E152: 2007-08-06 | F152: 0.0009757806142
A153: 2007-08-07 | B153: 2007 | C153: 248.985992 | E153: 2007-08-07 | F153: 0.07431589437
A154: 2007-08-08 | B154: 2007 | C154: 250.990005 | E154: 2007-08-08 | F154: 0.08588122997
A155: 2007-08-09 | B155: 2007 | C155: 240.171005 | E155: 2007-08-09 | F155: 0.02231330616
A156: 2007-08-10 | B156: 2007 | C156: 233.279007 | E156: 2007-08-10 | F156: -0.01969220024
A157: 2007-08-13 | B157: 2007 | C157: 239.529999 | E157: 2007-08-13 | F157: 0.01845766808
A158: 2007-08-14 | B158: 2007 | C158: 236.003998 | E158: 2007-08-14 | F158: -0.002937384294
A159: 2007-08-15 | B159: 2007 | C159: 237.526993 | E159: 2007-08-15 | F159: 0.006342789345
A160: 2007-08-16 | B160: 2007 | C160: 231.516006 | E160: 2007-08-16 | F160: -0.03063674537
A161: 2007-08-17 | B161: 2007 | C161: 240.891998 | E161: 2007-08-17 | F161: 0.02663778672
A162: 2007-08-20 | B162: 2007 | C162: 242.414993 | E162: 2007-08-20 | F162: 0.03573024617
A163: 2007-08-21 | B163: 2007 | C163: 240.572006 | E163: 2007-08-21 | F163: 0.02472009013
A164: 2007-08-22 | B164: 2007 | C164: 239.529999 | E164: 2007-08-22 | F164: 0.01845766808
A165: 2007-08-23 | B165: 2007 | C165: 238.809006 | E165: 2007-08-23 | F165: 0.01410856085
A166: 2007-08-24 | B166: 2007 | C166: 236.404999 | E166: 2007-08-24 | F166: -0.000488140962
A167: 2007-08-27 | B167: 2007 | C167: 237.365997 | E167: 2007-08-27 | F167: 0.005364597859
A168: 2007-08-28 | B168: 2007 | C168: 235.843994 | E168: 2007-08-28 | F168: -0.003915822224
A169: 2007-08-29 | B169: 2007 | C169: 235.442993 | E169: 2007-08-29 | F169: -0.006370896562
A170: 2007-08-30 | B170: 2007 | C170: 239.770004 | E170: 2007-08-30 | F170: 0.01990250034
A171: 2007-08-31 | B171: 2007 | C171: 241.132996 | E171: 2007-08-31 | F171: 0.02808039511
A172: 2007-09-03 | B172: 2007 | C172: 243.296997 | E172: 2007-09-03 | F172: 0.04096982938
A173: 2007-09-04 | B173: 2007 | C173: 248.345001 | E173: 2007-09-04 | F173: 0.07059702278
A174: 2007-09-05 | B174: 2007 | C174: 242.335007 | E174: 2007-09-05 | F174: 0.03525414341
A175: 2007-09-06 | B175: 2007 | C175: 241.854004 | E175: 2007-09-06 | F175: 0.03238773853
A176: 2007-09-07 | B176: 2007 | C176: 229.272995 | E176: 2007-09-07 | F176: -0.04468224732
A177: 2007-09-10 | B177: 2007 | C177: 226.147003 | E177: 2007-09-10 | F177: -0.06448780704
A178: 2007-09-11 | B178: 2007 | C178: 228.391006 | E178: 2007-09-11 | F178: -0.05024284518
A179: 2007-09-12 | B179: 2007 | C179: 225.826996 | E179: 2007-09-12 | F179: -0.06653072363
A180: 2007-09-13 | B180: 2007 | C180: 227.429001 | E180: 2007-09-13 | F180: -0.05633245021
A181: 2007-09-14 | B181: 2007 | C181: 218.214005 | E181: 2007-09-14 | F181: -0.1160049869
A182: 2007-09-17 | B182: 2007 | C182: 215.729004 | E182: 2007-09-17 | F182: -0.1325285291
A183: 2007-09-18 | B183: 2007 | C183: 219.496002 | E183: 2007-09-18 | F183: -0.1075540218
A184: 2007-09-19 | B184: 2007 | C184: 231.595993 | E184: 2007-09-19 | F184: -0.03013839141
A185: 2007-09-20 | B185: 2007 | C185: 228.792007 | E185: 2007-09-20 | F185: -0.04771203241
A186: 2007-09-21 | B186: 2007 | C186: 238.248001 | E186: 2007-09-21 | F186: 0.01071542547
A187: 2007-09-24 | B187: 2007 | C187: 227.910004 | E187: 2007-09-24 | F187: -0.05328443151
A188: 2007-09-25 | B188: 2007 | C188: 224.384003 | E188: 2007-09-25 | F188: -0.0757788583
A189: 2007-09-26 | B189: 2007 | C189: 225.266006 | E189: 2007-09-26 | F189: -0.0701190653
A190: 2007-09-27 | B190: 2007 | C190: 227.029007 | E190: 2007-09-27 | F190: -0.05887204462
A191: 2007-09-28 | B191: 2007 | C191: 227.509995 | E191: 2007-09-28 | F191: -0.05581875653
A192: 2007-10-01 | B192: 2007 | C192: 231.917007 | E192: 2007-10-01 | F192: -0.02814006394
A193: 2007-10-02 | B193: 2007 | C193: 236.565002 | E193: 2007-10-02 | F193: 0.0004879697551
A194: 2007-10-03 | B194: 2007 | C194: 239.449997 | E194: 2007-10-03 | F194: 0.01797573359
A195: 2007-10-04 | B195: =YEAR(A195) -> 2007 | C195: 240.572006 | E195: 2007-10-04 | F195: =LOG(C195/$C$2,2) -> 0.02472009013
A196: 2007-10-05 | B196: 2007 | C196: 240.811996 | E196: 2007-10-05 | F196: 0.02615857754
A197: 2007-10-08 | B197: 2007 | C197: 240.572006 | E197: 2007-10-08 | F197: 0.02472009013
A198: 2007-10-09 | B198: 2007 | C198: 243.537003 | E198: 2007-10-09 | F198: 0.04239230807
A199: 2007-10-10 | B199: 2007 | C199: 242.093994 | E199: 2007-10-10 | F199: 0.03381860471
A200: 2007-10-11 | B200: 2007 | C200: 245.139999 | E200: 2007-10-11 | F200: 0.05185722115
... 2323 more rows
